Cogmind - Beta 10.2 @@@ ROGUE MODE // 2020.11.28 @ 14:55:35 Player: Buffy Result: Destroyed by as-62781 with Assembled Blade Performance ------------- Evolutions (0) 0 Regions Visited (3) 600 Robots Destroyed (9) 45 Value Destroyed (147) 147 Prototype IDs (5) 100 Alien Tech Used (0) 0 Bonus (-66) -66 TOTAL SCORE: 826 Bonus ------- Friendly Fire -66 Cogmind --------- Core Integrity 0/250 Matter 300/300 Energy 100/100 System Corruption 0% Temperature Cool (0) Movement Core (300) Ox5 Location -10/Exiles Parts ------- > --- POWER (1) -------- (None) > --- PROPULSION (2) --- (None) > --- UTILITY (2) ------ Large Storage Unit > --- WEAPON (2) ------- (None) > --- INVENTORY (10) --- Light Ion Engine Fission Core Improved Heat Sink High-capacity Matter Pod (200) High-capacity Matter Pod (200) Sensor Array Small Laser Grenade Launcher Peak State ------------ > --- POWER ------------ Ion Engine > --- PROPULSION ------- Light Treads Light Treads > --- UTILITY ---------- Large Storage Unit Propulsion Shielding > --- WEAPON ----------- Medium Laser Rocket Launcher > --- INVENTORY -------- Light Ion Engine Improved Heat Sink High-capacity Matter Pod Sensor Array Medium Laser Small Laser Light Assault Rifle Grenade Launcher Grenade Launcher [Rating: 9] Favorites ----------- Power Ion Engine Engine Ion Engine Propulsion Light Treads Treads Light Treads Utility Large Storage Unit Storage Large Storage Unit Protection Propulsion Shielding Weapon Medium Laser Energy Gun Medium Laser Ballistic Gun Light Assault Rifle Launcher Grenade Launcher Build | -11 -10 -10 -10 ------- Run | Scr Mat Min Exi Slots Evolved . | . . . . Power . | . . . . Propulsion . | . . . . Utility . | . . . . Weapon . | . . . . Parts Attached 16 | 6 2 7 1 Power 1 | 1 . . . Engine 1 | 1 . . . Core . | . . . . Reactor . | . . . . Propulsion 2 | 2 . . . Treads 2 | 2 . . . Leg . | . . . . Wheel . | . . . . Hover . | . . . . Flight . | . . . . Utility 4 | 1 2 1 . Device . | . . . . Storage 3 | 1 1 1 . Processor . | . . . . Hackware . | . . . . Protection 1 | . 1 . . Artifact . | . . . . Weapon 9 | 2 . 6 1 Energy Gun 2 | 1 . 1 . Energy Cannon . | . . . . Ballistic Gun 3 | 1 . 1 1 Ballistic Cannon . | . . . . Launcher 4 | . . 4 . Special Weapon . | . . . . Impact Weapon . | . . . . Slashing Weapon . | . . . . Piercing Weapon . | . . . . Special Melee Weapon . | . . . . Unidentified Prototypes . | . . . . Parts Lost 9 | . . 4 5 Power 1 | . . . 1 Propulsion 2 | . . . 2 Utility 1 | . . 1 . Weapon 5 | . . 3 2 Highest Loss Streak 5 | . . 4 5 Average Slot Usage (%) 93 | . 96 98 84 Engine 14 | . 14 14 14 Treads 27 | . 28 28 27 Storage 14 | . 14 15 14 Protection 8 | . 10 11 . Energy Gun 13 | . 14 12 14 Ballistic Gun 9 | . 14 10 1 Launcher 4 | . . 4 12 Naked Turns . | . . . . Heaviest Build 30 | 12 25 30 26 Greatest Support 40 | 40 40 40 40 Greatest Overweight (x) 7 | . . . 7 Average Overweight (x) . | . . . . Largest Inventory Capacity 12 | 6 12 10 10 Average Capacity 9 | 5 9 10 10 Most Carried 9 | 2 7 9 8 Average Carried 5 | 1 5 8 7 Final Capacity 10 | 6 10 10 10 Final Carried 8 | 2 7 5 8 Class Distribution -------------------- 100% | Mutant Dominant Class ---------------- Mutant | -10/Materials Mutant | -10/Mines Mutant | -10/Exiles Resources | -11 -10 -10 -10 ----------- Run | Scr Mat Min Exi Matter Collected 999 | 264 285 50 400 Remotely . | . . . . Salvage Created 227 | 65 89 73 . Parts 16 | 2 13 1 . Haulers Intercepted . | . . . . Recyclers Shooed 1 | . . 1 . Parts Field Recycled . | . . . . Retrieved Matter . | . . . . Parts Self-Destructed . | . . . . Prevented . | . . . . Kills | -11 -10 -10 -10 ------- Run | Scr Mat Min Exi Combat Hostiles Destroyed 16 | . 6 10 . Guns 7 | . 6 1 . AOE 9 | . . 9 . Classes Destroyed 4 | 1 1 2 . Recycler 1 | 1 . . . Swarmer 6 | . 6 . . Grunt 2 | . . 2 . Assembled 8 | . . 8 . Best Kill Streak 5 | 1 2 5 . Combat Bots Only 5 | . 2 5 . Max Kills in Single Turn 4 | 1 1 4 . Gunslinging . | . . . . Exploded 4 | . . 4 . Melee . | . . . . Uniques/NPCs Destroyed . | . . . . Combat | -11 -10 -10 -10 -------- Run | Scr Mat Min Exi Damage Taken 996 | . 99 485 412 Core 259 | . . 37 222 Absorbed by Shields . | . . . . Core Remaining (%) 100 | 100 . . . Volleys Fired 33 | 4 14 14 1 Largest 2 | 2 2 2 1 Hottest 70 | 70 70 70 50 Shots Fired 55 | 8 28 18 1 Gun 39 | 8 28 2 1 Cannon . | . . . . Launcher 16 | . . 16 . Special . | . . . . Kinetic 19 | 4 14 1 . Thermal 20 | 4 14 1 1 Explosive 16 | . . 16 . Electromagnetic . | . . . . Robot Hit Streak 8 | 8 4 6 4 Robot Miss Streak 4 | . 4 2 . Penetration Max . | . . . . Secondary Targets 2 | . 2 . . Max Gunslinging Chain 1 | . 1 . . Shots Hit Robots 31 | 8 13 9 1 Core Hits 41 | 2 6 32 1 Critical Hits . | . . . . Critical Kills . | . . . . Critical Parts Destroyed . | . . . . Melee Attacks . | . . . . Impact . | . . . . Slashing . | . . . . Piercing . | . . . . Sneak Attacks . | . . . . Combat Hostiles . | . . . . Follow-up Attacks . | . . . . Damage Inflicted 1053 | 81 160 800 12 Guns 266 | 81 160 13 12 Cannons . | . . . . Explosions 787 | . . 787 . Melee . | . . . . Ramming . | . . . . Kinetic 78 | 30 48 . . Thermal 188 | 51 112 13 12 Explosive 787 | . . 787 . Electromagnetic . | . . . . Impact . | . . . . Slashing . | . . . . Piercing . | . . . . Highest Corruption . | . . . . Average Corruption . | . . . . Corruption Purged . | . . . . Overload Shots . | . . . . Overflow Damage 7 | . . 7 . Projectiles . | . . . . Explosions 7 | . . 7 . Melee . | . . . . Knockbacks . | . . . . Impact . | . . . . Kinetic . | . . . . Secondary . | . . . . Self-Inflicted Damage 40 | . . 40 . Shots 2 | . . 2 . Rammed . | . . . . Targets Rammed . | . . . . Kicked . | . . . . Crushed . | . . . . Highest Temperature 80 | 80 70 39 10 Average Temperature 30 | 45 29 16 7 Received Heat Transfer 53 | . . 33 20 Siege Activations . | . . . . Robots Corrupted . | . . . . Combat Hostiles . | . . . . Parts Fried . | . . . . Impact Corruptions . | . . . . Robots Melted . | . . . . Combat Hostiles . | . . . . Parts Melted . | . . . . Heat Transferred 555 | 148 333 37 37 Parts Sabotaged . | . . . . Parts Stolen . | . . . . Parts Stripped . | . . . . Power Chain Reactions . | . . . . Missiles Intercepted . | . . . . Alert | -11 -10 -10 -10 ------- Run | Scr Mat Min Exi Peak Influence 275 | 5 275 78 . Initial 28 | . 3 28 . Average 83 | 1 114 60 . Maximum Alert Level 1 | . 1 . . Low Security (%) 80 | 100 64 100 . Level 1 19 | . 35 . . Level 2 . | . . . . Level 3 . | . . . . Level 4 . | . . . . Level 5 . | . . . . High Security . | . . . . Max Security . | . . . . Squads Dispatched 1 | . 1 . . Investigation . | . . . . Extermination . | . . . . Reinforcement 1 | . 1 . . Assault . | . . . . Garrison . | . . . . Intercept . | . . . . Construction Impeded . | . . . . Haulers Reinforced . | . . . . Stealth | -11 -10 -10 -10 --------- Run | Scr Mat Min Exi Distress Signals 3 | . 3 . . Communications Jammed . | . . . . Distress Signals . | . . . . Times Spotted 36 | . 10 19 7 Peak Tracking Total 11 | . 6 9 11 Tactical Retreats 4 | . 1 2 1 Traps | -11 -10 -10 -10 ------- Run | Scr Mat Min Exi Traps Triggered . | . . . . Indirectly . | . . . . Trap Hack Attempts . | . . . . Triggered . | . . . . Disarmed . | . . . . Reprogrammed . | . . . . Reused . | . . . . Traps Extracted . | . . . . Installed . | . . . . Triggered . | . . . . Machines | -11 -10 -10 -10 ---------- Run | Scr Mat Min Exi Machines Disabled . | . . . . Max in Single Turn . | . . . . Machines Sabotaged . | . . . . Garrisons Compromised . | . . . . Overloaded Fab Kills . | . . . . Fab Network Shutdowns . | . . . . Hacking | -11 -10 -10 -10 --------- Run | Scr Mat Min Exi Machines Accessed 4 | . 4 . . Terminals 4 | . 4 . . Fabricators . | . . . . Repair Stations . | . . . . Recycling Units . | . . . . Scanalyzers . | . . . . Garrison Access . | . . . . Total Hacks 20 | . 20 . . Successful 13 | . 13 . . Failed 7 | . 7 . . Catastrophic 2 | . 2 . . Database Lockouts . | . . . . Manual 13 | . 13 . . Terminals 20 | . 20 . . Fabricators . | . . . . Repair Stations . | . . . . Recycling Units . | . . . . Scanalyzers . | . . . . Garrison Access . | . . . . Terminal Hacks 10 | . 10 . . Robot Schematic 1 | . 1 . . Robot Analysis 1 | . 1 . . Prototype ID Bank 3 | . 3 . . Branch Access Points 1 | . 1 . . Recall Reinforcements 1 | . 1 . . Hauler Manifests 1 | . 1 . . Registered Prototypes 1 | . 1 . . Zone Layout 1 | . 1 . . Fabricator Hacks . | . . . . Repair Station Hacks . | . . . . Recycling Unit Hacks . | . . . . Scanalyzer . | . . . . Garrison Access Hacks . | . . . . Unauthorized Hacks 3 | . 3 . . Terminals 3 | . 3 . . Botnet 3 | . 3 . . Fabricators . | . . . . Repair Stations . | . . . . Recycling Units . | . . . . Scanalyzers . | . . . . Garrison Access . | . . . . Data Cores Recovered . | . . . . Used . | . . . . Hacking Detections 3 | . 3 . . Full Trace Events . | . . . . Feedback Events . | . . . . Feedback Blocked . | . . . . Robot Schematics Acquired 1 | . 1 . . Robots Built . | . . . . Matter . | . . . . Time . | . . . . Total Robot Build Rating . | . . . . Part Schematics Acquired . | . . . . Parts Built . | . . . . Matter . | . . . . Time . | . . . . Total Part Build Rating . | . . . . Parts Repaired . | . . . . Time . | . . . . Parts Recycled . | . . . . Recycled Matter . | . . . . Retrieved Matter . | . . . . Retrieved Components . | . . . . Parts Scanalyzed . | . . . . Part Schematics Acquired . | . . . . Parts Damaged . | . . . . Bothacking | -11 -10 -10 -10 ------------ Run | Scr Mat Min Exi Used RIF Installer . | . . . . Robots Hacked . | . . . . Non-combat . | . . . . Combat . | . . . . Robot Hacks Applied . | . . . . Relay Couplers Released . | . . . . Robots Rewired . | . . . . Allies Hacked . | . . . . Hacks Repelled . | . . . . Allies | -11 -10 -10 -10 -------- Run | Scr Mat Min Exi Total Allies 2 | . . 2 . Largest Group 2 | . . 2 . Highest-Rated Group 48 | . . 48 . Highest-Rated Ally 31 | . . 31 . Total Orders . | . . . . Ally Attacks 11 | . . 11 . Total Damage 86 | . . 86 . Kills 3 | . . 3 . Allies Corrupted . | . . . . Allies Melted . | . . . . Intel | -11 -10 -10 -10 ------- Run | Scr Mat Min Exi Robot Analysis Total 1 | . 1 . . Derelict Logs Recovered 1 | . . 1 . Drone Launches . | . . . . Drone Recoveries . | . . . . Exploration | -11 -10 -10 -10 ------------- Run | Scr Mat Min Exi Turns Passed 1048 | 88 441 265 254 Spaces Moved 567 | 41 244 131 151 Core 4 | 2 . . 2 Treads 563 | 39 244 131 149 Legs . | . . . . Wheels . | . . . . Hover . | . . . . Flight . | . . . . Fastest Speed 50 | 50 160 160 160 Average Speed 160 | 154 160 160 163 Slowest Speed 400 | 160 160 160 400 Overloaded Moves . | . . . . Propulsion Burnouts . | . . . . Robots Hopped . | . . . . Cave-ins Triggered . | . . . . Exploration Rate (%) 28 | 5 39 35 33 Regions Visited 3 Branch Regions 2 Pre-discovered Areas . | . . . . Known Exits Taken 1 | . 1 . . Unknown Exits Taken 2 | 1 . 1 . Scrap Searched . | . . . . Spaces Dug . | . . . . Terrain Destroyed 49 | . . 49 . Melee . | . . . . Projectile . | . . . . AOE 49 | . . 49 . Terrain Rammed . | . . . . Walls Destroyed . | . . . . Machines Disabled . | . . . . Actions | -11 -10 -10 -10 --------- Run | Scr Mat Min Exi Total 653 | 58 270 167 158 Wait 18 | 2 2 14 . Move 564 | 40 243 130 151 Hop . | . . . . Pick Up 18 | 6 7 2 3 Fast Attach 3 | 2 1 . . Attach 9 | 4 1 4 . Detach 1 | . . . 1 Swap 4 | . . 3 1 Drop 3 | . 2 . 1 Fire 33 | 4 14 14 1 Melee . | . . . . Ram . | . . . . Kick . | . . . . Crush . | . . . . Escape Stasis . | . . . . Rewire . | . . . . Trap . | . . . . Miscellaneous . | . . . . Route ------- -11/Scrapyard -10/Materials (discovered 2 exits: *Min x2) -10/Mines -10/Exiles History --------- Turn | Location | Event 16 | -11/Scrapyard | Discovered new exit (range 16) 89 | -11/Scrapyard | Entered Materials 304 | -10/Materials | Identified exit to Mines 306 | -10/Materials | Build established: Mutant 530 | -10/Materials | Entered Mines 590 | -10/Mines | Received a Rocket Launcher from a helpful Derelict 691 | -10/Mines | Learned 2 Materials zone layouts 712 | -10/Mines | Assembled infested the area 717 | -10/Mines | Assisted by a Guerilla fighting off Assembled 784 | -10/Mines | Deemed a non-threat by the Exiles lab entrance 785 | -10/Mines | Discovered new exit (range 5) 786 | -10/Mines | Lost 4 parts (1u3w) 795 | -10/Mines | Entered Exiles 843 | -10/Exiles | Met 8R-AWN 869 | -10/Exiles | Met EX-HEX 1034 | -10/Exiles | Attacked by the Exiles 1041 | -10/Exiles | Core integrity fell below 50% 1049 | -10/Exiles | Core integrity fell below 20% 1049 | -10/Exiles | Destroyed by as-62781 with Assembled Blade Last Messages --------------- know something, but I doubt that would end well. The Zionites will tell you those Marauders at the gates are defenses set up by Warlord... Nope, the Imprinter put them there mostly to keep us out! Anyway, I've got to get back to poking and prodding these nasty little guys. Go see BIN. I can't imagine you'll want to stay in our boring little cave for long, and we could use some help with the project in the back. 00957_ Extracted 200 matter. 00959_ Dropped Hcp. Matter Pod. 00959_ Acquired Hcp. Matter Pod. 00960_ Extracted 200 matter. 00995_ Acquired Hcp. Matter Pod. 01034_ EXILES: Hostile robot within lab perimeter. Defensive protocols time, folks! 01038_ Lgt. Treads destroyed. 01046_ Ion Engine destroyed. 01046_ Med. Laser destroyed. 01048_ Penetrated by HV Slug. 01048_ Lgt. Assault Rifle destroyed. Map ----- +----------------------------------------------------+ | ?????????????????????????????????????????????????? | | ?????????????????????????????????????????????????? | | ?????????????????????????????????????????????????? | | ?????????????????????" ?????????????????????????? | | ?????????????????????" ????????????????????????? | | ????????????????????" ???????????????????????? | | ????????????????????" #??????????????????????? | | ???????????????????"" #????###########??????? | | ???????????????????" #####"""""""""##?????? | | ??????????????????? " """ """"##????? | | ?????????????????? "" " #????? | | ?????????????????? " """#????? | | ????????????????? " "#????? | | ????????????????? " "##???? | | ????????????????? ""###?? | | ?????????????????????""" """#?? | | ?????????????????????##""" "#?? | | ???????????????????????####""" ##? | | ?????? ??????????????????##""" ## | | ?????? ????????????????#"""" # | | ????? ??????????????##"" | | ????? #??#####??####"""" | | ???? ##aaa####""" a | | ???? """" | | ???? c aa a | | ???? @a a # | | ???? a" ## | | ???? " "" """ ""#? | | ????? ""## ##""" " " ""#" "##? | | ????? ""#### ######""" """##"""""""##?? | | ?????? """"#???# #????###""""###########??? | | ?????? """???## ####????#####????????????? | | ?????? ""#???#! "!#?????????????????????? | | ??????? "???????#" !#?????????????????????? | | ??????? ????????#"! "#?????????????????????? | | ????????????????????#! "" "#?????????????????????? | | ????????????????????########?????????????????????? | | ?????????????????????????????????????????????????? | | ?????????????????????????????????????????????????? | | ?????????????????????????????????????????????????? | | ?????????????????????????????????????????????????? | | ?????????????????????????????????????????????????? | | ?????????????????????????????????????????????????? | | ?????????????????????????????????????????????????? | | ?????????????????????????????????????????????????? | | ?????????????????????????????????????????????????? | | ?????????????????????????????????????????????????? | | ?????????????????????????????????????????????????? | | ?????????????????????????????????????????????????? | | ?????????????????????????????????????????????????? | +----------------------------------------------------+ Best States ------------- Heat Dissipation 25 Energy Generation 10 Energy Capacity 250 Matter Stores 300 Matter Capacity 500 Sight Range 16 Terrain Scan Density 10 Propulsion Shielding 33 Evasion (%) 40 Recoil Reduction 2 Item Schematics ----------------- None Robot Schematics ------------------ G-34 Mercenary | -10/Materials | Hacked Fabricated ------------ Nothing Alien Tech Used ----------------- None Achievements -------------- None Challenges ------------ None Game ------ Seed DamperInertialInterpreter Manual? 0 Play Time 00:23:49 Cumulative 67.3 hours Start 2020.11.28 @ 14:28:14 End 2020.11.28 @ 14:55:35 Sessions 1 Manual Loads 0 Difficulty Rogue Special Mode None Game No. 24 Rogue 21 Adventurer 1 Explorer 2 Win Type - Total 0 Types 0/0/0/0/0/0/0/0/0 Lore% 26 Gallery% 35 Achievement% 28 Wizard Run 0 Options --------- ASCII 0 Keyboard 0 Movement Mouse Keybinds 0 Fullscreen 1 Font 18/SmallcapsGlow Map View 76x50 Tactical HUD 1 Map Filters NONE Filters NONE Steam 0 RUN: 32b56ef2-7010-44ac-ae64-50159775a132